bitfinex/quotes_ETHUSD_20240621
["timestamp","ask_amount","ask_price","bid_price","bid_amount"]
[1718962233281,0.75,3509.6,3506.8,2.828]
[1718962233481,0.75,3509.6,3506.4,0.91323]
[1718962233704,0.36665583,3509.5,3506.2,6.506]
[1718962233906,0.75,3509.6,3506.3,3.0]
[1718962234105,0.08855827,3509.8,3506.3,3.0]
[1718962234418,0.75,3509.7,3506.4,0.01729746]
[1718962234583,0.08855827,3509.8,3506.4,0.01729746]
[1718962234791,0.83855827,3509.8,3506.4,0.01729746]
[1718962234988,0.83855827,3509.8,3506.5,0.95232975]
[1718962235284,0.08855827,3509.8,3506.5,0.95232975]
[1718962235732,0.83855827,3509.8,3506.2,3.492]
[1718962236114,0.75,3509.5,3506.2,3.492]
[1718962236315,0.55,3509.4,3506.2,3.492]
[1718962236518,0.75,3509.3,3506.2,3.492]
[1718962236799,0.55,3509.4,3506.2,3.492]
[1718962236800,0.55,3509.2,3506.2,3.492]
[1718962237051,0.55,3509.4,3506.3,0.66103]
[1718962237216,0.55,3509.6,3506.3,0.66103]
[1718962238747,0.75,3509.5,3506.3,0.66103]
[1718962239051,0.55,3509.4,3506.4,0.0569495]
[1718962239360,0.75,3509.1,3506.5,0.42099795]
[1718962239644,0.55,3509.0,3506.5,0.42099795]
[1718962240005,0.55,3509.0,3506.5,3.43499795]
[1718962240207,0.75,3508.9,3506.5,3.43499795]
[1718962240406,0.55,3508.8,3506.6,3.42360279]
[1718962240606,0.55,3509.0,3506.6,3.42360279]
[1718962241051,0.83855827,3509.8,3506.6,3.42360279]
[1718962241211,0.08855827,3509.8,3506.6,3.42360279]
[1718962241866,0.08855827,3509.8,3506.8,3.014]
[1718962242160,0.08855827,3509.8,3507.2,3.014]
[1718962243256,0.08855827,3509.8,3507.4,3.1539]
[1718962243407,0.75,3511.5,3507.7,3.1539]
[1718962243610,0.75,3511.5,3507.8,0.05697961]
[1718962243825,0.75,3511.8,3508.4,6.1205]
[1718962244060,1.145965,3512.0,3508.5,0.96125]
[1718962244263,0.27477149,3512.0,3508.5,0.96125]
[1718962244561,1.02477149,3512.0,3508.5,0.96125]
[1718962244849,0.00381,3512.0,3508.8,2.85]
[1718962245055,0.00381,3512.0,3509.0,3.492]
[1718962245236,0.00381,3512.0,3509.1,0.05696493]
[1718962245543,0.00381,3512.0,3509.2,3.07096493]
[1718962245744,0.00381,3512.0,3509.7,3.492]
[1718962245948,0.00381,3512.0,3509.8,0.05695253]
[1718962246106,0.00381,3512.0,3509.7,3.492]
[1718962246528,0.00381,3512.0,3509.8,0.05695729]
[1718962246748,0.00381,3512.0,3509.3,3.91459649]
[1718962246749,0.00381,3512.0,3509.3,2.8833]
[1718962246978,0.00381,3512.0,3509.4,0.28833]
[1718962247359,0.75,3511.9,3509.4,0.28833]
[1718962247861,0.00381,3512.0,3509.4,0.28833]
[1718962248147,0.00381,3512.0,3509.5,3.492]
[1718962248515,0.00381,3512.0,3509.4,0.28833]
[1718962249119,0.00381,3512.0,3509.5,0.317163]
[1718962249326,0.00381,3512.0,3509.6,0.05696811]
[1718962249547,0.00381,3512.0,3509.5,0.317163]
[1718962250345,0.005,3509.8,3509.5,0.317163]
[1718962250536,0.00381,3512.0,3509.5,0.317163]
[1718962251145,0.00381,3512.0,3509.3,2.8833]
[1718962251146,0.00381,3512.0,3509.6,0.3200463]
[1718962251309,0.00381,3512.0,3509.7,3.492]
[1718962251927,0.00381,3512.0,3509.8,6.1611]
[1718962252233,0.00381,3512.0,3510.4,3.492]
[1718962252437,0.00381,3512.0,3510.5,3.0884]
[1718962252753,0.00381,3512.0,3510.6,0.65804]
[1718962253285,0.00381,3512.0,3510.7,3.014]
[1718962255229,0.00381,3512.0,3510.9,3.014]
[1718962255434,0.00381,3512.0,3511.1,3.014]
[1718962255762,0.1179728,3514.5,3511.3,3.014]
[1718962256058,0.1179728,3514.5,3511.5,3.014]
[1718962256059,0.38789056,3514.4,3511.5,3.014]
[1718962256229,0.8679728,3514.5,3511.5,3.014]
[1718962256754,0.8679728,3514.5,3511.6,0.0187204]
[1718962256755,0.75,3514.4,3511.6,0.0187204]
[1718962257722,0.75,3514.4,3511.5,3.014]
[1718962257920,3.6099728,3514.5,3511.5,3.014]
[1718962258265,3.6099728,3514.5,3511.2,3.1263]
[1718962258266,0.8679728,3514.5,3511.3,3.014]
[1718962258418,0.1179728,3514.5,3511.5,3.014]
[1718962258620,3.492,3515.3,3510.9,4.877138]
[1718962258621,0.75,3516.2,3512.6,6.0265]
[1718962258918,1.56755574,3517.9,3513.0,4.732]
[1718962258919,1.32722055,3516.3,3513.0,4.732]
[1718962259247,0.30828855,3516.3,3513.5,3.014]
[1718962259448,0.30828855,3516.3,3513.5,3.76762]
[1718962259748,0.30828855,3516.3,3513.5,0.75362]
[1718962259949,0.75,3516.1,3513.5,0.75362]
[1718962260154,0.30828855,3516.3,3513.5,0.75362]
[1718962260319,0.30828855,3516.3,3513.6,0.01777217]
[1718962260516,0.59458855,3516.3,3513.7,0.36353922]
[1718962260766,0.30828855,3516.3,3513.8,3.014]
[1718962260955,0.30828855,3516.3,3513.4,2.864]
[1718962261527,0.75,3516.0,3513.4,2.864]
[1718962261754,0.75,3515.8,3513.4,2.864]
[1718962262054,0.75,3515.8,3511.8,1.718]
[1718962262055,0.75,3515.2,3512.9,3.014]
[1718962262277,0.75,3515.2,3512.7,2.9062]
[1718962262421,0.75,3514.8,3512.1,2.9062]
[1718962262622,1.0363,3514.8,3512.1,2.9062]
[1718962262870,1.0363,3514.8,3512.1,3.19682]
[1718962262871,0.55,3514.7,3512.1,3.19682]
[1718962263161,0.75,3514.0,3511.5,3.014]
[1718962263463,0.75,3514.2,3511.4,2.9824]
[1718962263665,0.8363,3513.9,3511.4,2.9824]
[1718962263870,0.55,3513.9,3511.5,0.29824]
[1718962264168,0.75,3514.2,3511.5,0.29824]
[1718962264169,0.55,3514.1,3511.5,0.29824]
[1718962264325,3.492,3514.0,3510.7,3.0679]
[1718962264658,0.75,3513.6,3510.7,3.0679]
[1718962265127,0.55,3513.5,3510.7,3.0679]
[1718962265325,0.75,3513.0,3510.8,0.30679]
[1718962265553,0.75,3513.0,3510.2,3.014]
[1718962265554,0.55,3512.9,3510.2,3.014]
[1718962266440,0.55,3512.9,3510.1,2.8761]
[1718962266621,0.75,3512.2,3510.1,2.8761]
[1718962266822,0.55,3512.1,3508.7,1.141883]
[1718962267127,0.75,3511.8,3508.6,2.9776]
[1718962267352,0.75,3511.8,3508.8,3.014]
[1718962267669,0.55,3511.7,3508.8,3.014]
[1718962267822,0.75,3511.5,3508.8,3.014]
[1718962268026,0.55,3511.4,3508.8,3.014]
[1718962268225,0.55,3511.4,3508.9,3.642936]
[1718962268470,0.55,3511.7,3508.9,0.628936]
[1718962269624,0.75,3511.3,3508.9,0.628936]
[1718962269826,1.07,3511.1,3508.9,0.628936]
[1718962270065,0.712,3511.0,3508.9,0.628936]
[1718962270430,0.712,3511.0,3507.8,2.915]
[1718962270634,0.29821624,3510.9,3507.9,3.014]
[1718962270946,0.55,3510.8,3507.9,3.014]
[1718962271150,0.55,3510.8,3508.1,3.014]
[1718962271151,0.15602162,3510.7,3508.1,3.014]
[1718962271356,0.55,3510.6,3508.1,3.014]
[1718962271526,0.55,3510.6,3508.0,0.6679]
[1718962271726,0.55,3510.6,3508.0,3.014]
[1718962272330,0.75,3510.4,3507.8,2.915]
[1718962272547,0.55,3510.3,3507.8,2.915]
[1718962273079,0.87,3510.6,3507.8,2.915]
[1718962273278,0.17760216,3510.5,3507.9,0.2915]
[1718962273570,0.55,3510.4,3507.9,0.2915]
[1718962273781,1.3,3510.4,3507.9,0.2915]
[1718962273945,0.55,3510.4,3507.9,0.2915]
[1718962274264,0.55,3510.4,3508.0,0.62205]
[1718962276969,1.68751844,3510.3,3508.0,0.62205]
[1718962277185,0.55,3510.2,3507.8,2.915]
[1718962277388,0.04967614,3510.3,3507.5,3.014]
[1718962277589,2.23757288,3510.2,3507.3,3.014]
[1718962277893,2.21630599,3510.1,3507.5,3.014]
[1718962278056,0.55,3510.0,3507.5,3.014]
[1718962278604,3.55,3510.0,3507.5,3.014]
[1718962278754,0.55,3510.0,3507.5,3.014]
[1718962279156,0.55,3510.2,3507.5,3.014]
[1718962279392,1.68757996,3510.1,3507.6,0.36992928]
[1718962279601,0.55,3510.0,3507.6,0.36992928]
[1718962279973,0.55,3510.2,3507.6,0.36992928]
[1718962280298,2.3676211,3510.1,3507.7,0.40692221]
[1718962280466,2.23765349,3510.0,3507.7,0.40692221]
[1718962280665,3.55,3510.0,3507.7,0.40692221]
[1718962281187,0.29828749,3509.9,3507.7,0.40692221]
[1718962281404,0.55,3509.8,3507.7,0.40692221]
[1718962281892,1.68780248,3509.7,3507.4,0.68529284]
[1718962282103,0.55,3509.6,3507.2,3.2547]
[1718962282593,0.55,3509.7,3507.2,3.2547]
[1718962282899,0.55,3509.8,3507.3,0.62687]
[1718962283059,1.68778917,3509.7,3507.3,0.62687]
[1718962283254,0.55,3509.6,3507.3,0.62687]
[1718962283560,3.55,3509.6,3507.3,0.62687]
[1718962283757,2.75785771,3509.5,3506.7,3.014]
[1718962283977,2.75785771,3509.5,3506.6,3.9814]
[1718962283978,5.23785771,3509.4,3506.6,3.9814]
[1718962284323,0.75,3509.1,3506.6,3.9814]
[1718962284600,2.48164348,3509.0,3506.7,0.39814]
[1718962284815,0.79378577,3509.0,3506.7,0.39814]
[1718962284974,0.32,3508.9,3506.7,0.39814]
[1718962285168,0.32,3508.9,3506.6,0.55]
[1718962285381,2.23816652,3508.8,3506.6,0.55]
[1718962285681,1.68816652,3508.7,3506.6,0.55]
[1718962285906,0.55,3508.6,3506.6,0.55]
[1718962286207,0.57881665,3508.5,3506.6,0.55]
[1718962286390,0.55,3508.4,3506.0,3.4314]
[1718962286565,0.32,3508.3,3506.0,3.4314]
[1718962286770,0.55,3508.2,3505.4,6.42]
[1718962288204,0.55,3508.2,3505.4,3.406]
[1718962288509,0.162,3508.1,3505.5,0.3406]
[1718962288715,0.55,3508.0,3505.5,0.3406]
[1718962288896,0.32,3507.9,3505.5,0.3406]
[1718962289102,0.55,3507.8,3505.5,0.3406]
[1718962290509,0.32,3507.7,3504.9,6.1134]
[1718962290717,0.55,3507.6,3504.9,3.0994]
[1718962291379,0.29852079,3507.5,3504.9,3.0994]
[1718962291602,3.79052079,3507.5,3504.9,3.0994]
[1718962291909,3.53105208,3507.4,3505.0,0.30994]
[1718962292112,0.75,3507.3,3505.0,0.30994]
[1718962292473,0.32,3507.2,3505.0,0.30994]
[1718962292671,0.32,3507.2,3504.5,3.014]
[1718962292876,0.75,3507.1,3504.5,3.014]
[1718962293314,0.55,3507.0,3504.5,3.014]
[1718962293516,0.55,3507.1,3504.4,3.014]
[1718962294636,3.0,3507.4,3504.6,3.014]
[1718962294781,0.32,3507.9,3504.9,3.0994]
[1718962295122,0.32,3507.9,3505.2,3.014]
[1718962295428,0.61841577,3507.9,3505.3,0.01440798]
[1718962295578,0.61841577,3507.9,3505.5,3.014]
[1718962297146,0.61841577,3507.9,3505.4,0.6127808]
[1718962297353,0.55,3507.8,3505.4,0.6127808]
[1718962298805,0.32,3507.7,3504.3,3.3462]
[1718962299139,0.32,3507.2,3504.3,3.3462]
[1718962299652,0.55,3507.1,3504.3,3.3462]
[1718962300206,0.55,3507.1,3504.3,6.3602]
[1718962300410,0.55,3507.1,3504.5,3.014]
[1718962301262,0.55,3507.1,3504.4,0.64781728]
[1718962301910,0.55,3507.1,3504.5,0.05697972]
[1718962302509,0.36972245,3507.2,3504.5,0.05697972]
[1718962302915,0.36972245,3507.2,3504.4,3.66181728]
[1718962303132,0.36972245,3507.2,3504.6,3.014]
[1718962303633,0.36972245,3507.2,3504.5,0.70080173]
[1718962304042,0.55,3507.1,3504.5,0.70080173]
[1718962304657,0.55,3507.1,3504.3,3.3462]
[1718962304658,0.55,3507.1,3504.3,6.3602]
[1718962305218,0.55,3507.1,3504.4,0.05705379]
[1718962305655,0.55,3507.1,3504.3,6.3602]
[1718962305656,0.29855407,3507.0,3504.3,6.3602]
[1718962305987,0.1839,3506.8,3504.1,0.1179728]
[1718962306161,0.1839,3506.6,3504.1,0.1179728]
[1718962306515,0.1839,3506.4,3504.1,0.1179728]
[1718962306739,0.1839,3506.2,3504.1,0.1179728]
[1718962306943,0.42259,3506.1,3504.1,0.1179728]
[1718962307141,0.97259,3506.1,3504.1,0.1179728]
[1718962307348,0.55,3506.5,3504.1,0.1179728]
[1718962307349,0.1839,3506.9,3504.2,6.2404]
[1718962307614,0.74999999,3508.7,3504.1,0.1179728]
[1718962307615,0.1839,3507.5,3504.5,3.2264]
[1718962307872,0.1839,3507.5,3504.6,4.33878579]
[1718962308015,0.1839,3507.5,3504.8,3.014]
[1718962308209,0.1839,3507.5,3505.0,3.014]
[1718962308414,0.1839,3507.5,3505.2,3.014]
[1718962308615,0.1839,3507.5,3505.3,0.04595692]
[1718962309458,0.1839,3508.4,3505.7,3.014]
[1718962309758,0.75,3509.9,3506.3,3.014]
[1718962309759,0.1839,3509.8,3506.3,3.014]
[1718962309957,1.6877824,3509.7,3506.5,3.3003]
[1718962310277,0.1839,3509.5,3506.9,3.014]
[1718962310424,0.1839,3509.5,3507.1,3.014]
[1718962311479,0.1839,3509.5,3506.8,0.5826325]
[1718962311480,1.68773698,3509.4,3507.2,4.00658038]
[1718962311781,1.68773698,3509.4,3507.2,3.014]
[1718962312094,1.68773637,3509.3,3507.3,5.49517685]
[1718962312239,0.1839,3509.5,3507.4,0.99247074]
[1718962312444,0.1839,3509.5,3507.5,2.48117772]
[1718962312787,0.1839,3509.5,3507.6,0.99247109]
[1718962313076,2.23760786,3509.4,3507.7,0.15773336]
[1718962313241,0.55,3509.4,3507.3,3.90026253]
[1718962313442,0.55,3509.4,3507.3,3.3154]
[1718962313687,0.55,3509.4,3507.4,2.48126136]
[1718962313688,1.68761812,3509.3,3507.4,2.48126136]
[1718962313842,0.55,3509.4,3507.5,0.63818709]
[1718962314047,0.55,3509.4,3506.9,1.17041915]
[1718962314048,1.6876843,3509.3,3507.0,0.5855197]
[1718962314282,1.6876843,3509.3,3506.9,3.014]
[1718962314283,1.6876843,3509.3,3507.1,2.48162307]
[1718962314590,0.55,3509.2,3506.8,0.5855197]
[1718962314818,2.09535273,3509.1,3506.9,2.62823108]
[1718962314946,2.2376843,3509.0,3506.9,0.14637993]
[1718962315145,1.6876843,3508.9,3506.9,0.14637993]
[1718962315360,0.55,3508.8,3506.9,0.14637993]
[1718962315546,2.26645273,3508.7,3506.9,0.14637993]
[1718962315745,1.6876843,3508.6,3506.9,0.14637993]
[1718962316652,1.68787976,3508.5,3507.0,0.99267147]
[1718962316848,0.57876843,3508.7,3507.0,0.02495202]
[1718962317057,1.68792211,3508.6,3507.0,0.02495202]
[1718962317290,0.28166905,3508.5,3507.0,0.02495202]
[1718962317495,1.68792211,3508.4,3507.0,0.02495202]
[1718962318211,0.29836512,3508.3,3507.0,0.02495202]
[1718962318406,3.0,3510.2,3507.0,0.02495202]
[1718962318615,1.68778712,3509.0,3507.0,0.02495202]
[1718962318776,0.18716871,3508.9,3507.1,3.014]
[1718962319121,1.68778712,3508.8,3507.2,0.02495059]
[1718962319786,1.68776474,3508.7,3507.2,0.02495059]
[1718962320103,1.68776474,3508.6,3506.5,3.014]
[1718962320289,1.68776474,3508.5,3506.7,3.014]
[1718962320484,0.29832483,3509.0,3506.7,3.014]
[1718962320716,1.68778223,3508.9,3506.7,3.014]
[1718962320883,0.21700071,3508.8,3506.9,3.014]
[1718962321106,1.68778223,3508.7,3506.9,3.014]
[1718962322127,1.68783901,3508.6,3506.8,0.36892877]
[1718962322307,1.68783901,3508.5,3506.8,0.36892877]
[1718962322497,1.68795188,3508.4,3506.9,3.014]
[1718962322695,1.68795188,3508.3,3507.0,3.35229288]
[1718962322898,0.04968689,3509.5,3507.0,3.35229288]
[1718962323235,0.29832886,3508.9,3507.0,3.35229288]
[1718962323542,1.68780206,3508.8,3507.1,3.34922929]
[1718962323895,1.68780206,3508.8,3507.1,0.33522929]
[1718962324303,1.68780206,3508.8,3507.3,3.014]
[1718962324727,0.1839,3510.3,3507.5,3.014]
[1718962325041,1.98553021,3510.2,3507.5,3.014]
[1718962325195,1.68808822,3510.1,3507.5,3.014]
[1718962325397,0.21702251,3510.0,3507.7,3.014]
[1718962325741,1.68728822,3509.9,3507.9,3.014]
[1718962327502,1.68728822,3509.9,3508.0,3.014]
[1718962327851,1.68728822,3509.9,3508.1,3.3154]
[1718962328341,1.68730845,3509.8,3508.1,3.3154]
[1718962328499,1.68730845,3509.7,3508.1,3.3154]
[1718962328710,1.68730845,3509.6,3508.1,3.3154]
[1718962328943,0.21702251,3510.0,3508.1,3.3154]
[1718962329142,1.68725327,3509.9,3508.3,3.3258]
[1718962329349,1.68725327,3509.8,3508.3,3.3258]
[1718962329508,0.0008,3510.1,3508.3,3.3258]
[1718962329509,1.68725327,3509.7,3508.3,3.3258]
[1718962329859,1.68725327,3509.6,3508.3,3.3258]
[1718962330040,0.0008,3510.1,3508.4,0.667134]
[1718962330041,1.68725327,3509.5,3508.4,0.667134]
[1718962330241,0.0008,3510.1,3508.4,0.667134]
[1718962330445,0.5508,3510.1,3508.4,0.667134]
[1718962330654,0.5508,3510.1,3508.3,3.3258]
[1718962330838,0.5508,3510.1,3507.6,3.2439]
[1718962335031,0.75,3509.9,3507.6,3.2439]
[1718962335237,0.55,3509.8,3507.6,3.2439]
[1718962335476,0.75,3510.0,3507.7,0.4967]
[1718962335643,0.29831299,3509.7,3507.7,0.4967]
[1718962336063,0.29831299,3509.7,3506.9,3.1714]
[1718962336064,1.11687972,3509.6,3506.9,3.1714]
[1718962336286,0.75,3509.5,3506.9,3.1714]
[1718962336574,0.55,3509.4,3506.9,3.1714]
[1718962336744,0.1994,3509.3,3506.9,3.1714]
[1718962337066,0.73668797,3509.2,3507.0,0.31714]
[1718962337277,1.48668797,3509.2,3507.0,0.31714]
[1718962338084,1.48668797,3509.2,3505.8,10.3848]
[1718962338085,1.10416769,3509.2,3506.1,3.014]
[1718962338871,0.36747972,3509.1,3506.1,3.014]
[1718962339085,0.55,3509.0,3506.1,3.014]
[1718962340150,1.3,3509.0,3506.1,3.014]
[1718962340342,0.18541677,3508.9,3506.3,3.014]
[1718962340688,0.55,3508.8,3506.3,3.014]
[1718962341285,0.55,3508.8,3506.1,3.014]
[1718962341583,0.55,3508.8,3506.4,3.014]
[1718962341771,0.14854168,3508.7,3506.5,3.3154]
[1718962342092,0.55,3508.6,3506.5,3.3154]
[1718962342374,0.1994,3508.5,3506.5,3.3154]
[1718962344341,0.1994,3508.5,3505.1,3.49]
[1718962344541,0.1994,3508.3,3505.2,3.1587]
[1718962344775,0.1994,3508.3,3505.4,0.55]
[1718962344957,0.55,3508.2,3505.4,0.55]
[1718962345281,0.55,3508.2,3505.5,0.37087]
[1718962345282,0.1994,3508.0,3505.5,0.37087]
[1718962345585,0.55,3507.9,3505.5,0.37087]
[1718962345782,0.1994,3507.8,3505.5,0.37087]
[1718962346081,0.55,3507.7,3505.5,0.37087]
[1718962346499,0.75,3507.6,3504.6,5.0426]
[1718962346803,0.75,3507.6,3504.6,3.2239]
[1718962346804,0.1994,3507.5,3504.6,3.2239]
[1718962346952,0.1994,3507.4,3504.6,3.2239]
[1718962347148,0.1994,3507.2,3504.7,0.01872456]
[1718962347348,0.1994,3507.2,3504.8,0.32426246]
[1718962347650,0.55,3507.1,3504.9,0.01872349]
[1718962347859,0.55,3507.1,3504.8,0.32426246]
[1718962348066,0.1994,3507.0,3504.8,0.32426246]
[1718962348265,0.55,3506.9,3504.2,3.014]
[1718962348753,0.75,3506.8,3504.2,3.014]
[1718962349093,0.55,3506.7,3504.2,3.014]
[1718962349251,0.1994,3506.5,3504.3,3.70298528]
[1718962349453,0.55,3506.4,3504.3,0.68898528]
[1718962349669,0.55,3506.4,3504.1,0.1179728]
[1718962350981,3.37,3506.4,3504.1,0.1179728]
[1718962351232,0.1994,3506.3,3504.1,0.1179728]
[1718962351353,0.55,3506.2,3504.1,0.1179728]
[1718962351667,0.71194,3506.1,3504.1,0.1179728]
[1718962351862,0.55,3506.0,3504.1,0.1179728]
[1718962352271,3.1994,3506.3,3504.1,2.9379728]
[1718962352598,3.0,3506.2,3504.1,0.1179728]
[1718962352752,0.1994,3506.3,3504.1,0.1179728]
[1718962353685,0.55,3506.2,3504.1,0.1179728]
[1718962353889,0.35694,3506.1,3504.1,0.1179728]
[1718962355550,0.1994,3507.0,3504.3,3.014]
[1718962355889,0.18668797,3507.3,3504.9,3.014]
[1718962356092,0.1994,3507.5,3505.2,3.014]
[1718962356276,0.1994,3507.5,3505.3,3.3529]
[1718962356464,0.1994,3507.5,3505.4,3.014]
[1718962356670,0.1994,3507.5,3505.6,3.014]
[1718962357193,0.29760776,3507.7,3505.7,3.3529]
[1718962357405,3.1994,3508.1,3506.2,3.014]
[1718962357556,0.1994,3508.1,3506.2,3.014]
[1718962358668,0.1994,3508.1,3505.8,3.014]
[1718962358873,0.1994,3508.1,3506.0,3.014]
[1718962359488,0.1994,3508.1,3505.9,0.91869]
[1718962359689,0.1994,3508.1,3505.8,3.014]
[1718962359690,0.55,3508.0,3505.1,10.1994]
[1718962359891,0.55,3508.0,3505.1,3.3046]
[1718962360589,0.55,3508.0,3505.2,3.014]
[1718962360780,3.55,3508.0,3505.2,3.014]
[1718962360967,0.65694,3507.9,3505.3,3.92786]
[1718962361173,0.55,3507.8,3505.3,0.91386]
[1718962361555,0.1975,3507.7,3505.3,0.91386]
[1718962361756,0.55,3507.6,3505.3,0.91386]
[1718962361973,0.55,3507.6,3505.0,2.82]
[1718962362192,0.55,3507.6,3503.8,12.5663]
[1718962362193,0.1975,3507.0,3504.5,3.1724]
[1718962362561,0.55,3506.9,3504.5,3.1724]
[1718962365014,0.55,3506.9,3504.1,0.1179728]
[1718962366412,0.1975,3506.8,3504.1,0.1179728]
[1718962366717,2.82,3506.6,3504.1,1.04961008]
[1718962367014,0.1975,3506.4,3504.1,1.04961008]
[1718962367181,0.1975,3506.4,3504.1,0.1179728]
[1718962367389,0.55,3506.3,3504.1,0.1179728]
[1718962367586,2.82,3506.1,3504.1,0.1179728]
[1718962367787,0.55,3506.0,3504.1,0.1179728]
[1718962367986,3.55,3506.0,3504.1,0.1179728]
[1718962368189,0.65675,3505.9,3504.1,0.1179728]
[1718962368388,0.55,3505.8,3504.1,0.1179728]
[1718962368596,0.1975,3505.7,3504.1,0.1179728]
[1718962368792,0.55,3505.6,3504.1,0.1179728]
[1718962370904,3.37,3505.6,3504.1,0.1179728]
[1718962371114,3.0,3505.5,3504.1,0.1179728]
[1718962371366,0.55,3505.4,3504.1,0.1179728]
[1718962372077,0.1975,3505.3,3504.1,0.1179728]
[1718962372272,0.55,3505.2,3504.1,0.1179728]
[1718962374019,2.82,3504.2,3502.5,0.55]
[1718962374331,0.74999999,3504.7,3502.5,0.55]
[1718962374332,1.05321978,3504.1,3502.5,0.55]
[1718962374619,0.45549556,3504.5,3502.5,0.55]
[1718962374620,0.55,3504.0,3502.5,0.55]
[1718962374807,3.43025244,3504.6,3502.5,0.55]
[1718962374980,0.0795,3504.4,3502.5,0.55]
[1718962375178,0.55,3504.3,3502.5,0.55]
[1718962375410,0.16097524,3504.2,3502.5,0.55]
[1718962375713,3.0,3504.6,3502.5,0.55]
[1718962375714,3.0,3504.6,3502.6,3.014]
[1718962376021,0.0795,3505.1,3502.8,3.014]
[1718962377731,0.0795,3505.1,3502.6,5.834]
[1718962378324,0.0795,3505.1,3502.6,3.014]
[1718962378526,0.55,3505.0,3502.6,3.014]
[1718962378690,0.8475187,3505.0,3502.8,3.014]
[1718962380888,0.8475187,3505.0,3502.9,0.02841504]
[1718962381439,0.8475187,3505.0,3502.8,3.014]
[1718962382658,0.2975187,3505.0,3503.8,3.014]
[1718962382842,0.0795,3507.5,3504.6,5.834]
[1718962383058,0.04972028,3507.2,3505.1,2.82]
[1718962383206,0.29750008,3507.4,3505.2,3.07096073]
[1718962383410,0.29750008,3507.4,3505.3,0.64605517]
[1718962383947,0.29750008,3507.4,3505.3,0.58909607]
[1718962384658,0.29750008,3507.4,3505.4,0.05262095]
[1718962385043,0.29750008,3507.4,3505.3,0.58909607]
[1718962386958,0.55,3507.3,3505.3,0.58909607]
[1718962387161,0.29750008,3507.4,3505.6,2.82]
[1718962387339,0.0795,3507.5,3505.7,0.03196925]
[1718962387861,0.0795,3507.5,3505.8,0.05703261]
[1718962389554,0.0795,3507.5,3505.6,2.82]
[1718962389764,0.55,3507.4,3505.6,2.82]
[1718962390068,0.55,3507.4,3505.7,0.282]
[1718962390438,0.0795,3507.5,3505.7,3.296]
[1718962390649,0.0795,3507.5,3506.1,2.82]
[1718962391234,0.0795,3507.5,3506.2,0.02659649]
[1718962392530,0.0795,3507.5,3506.1,2.82]
[1718962392759,0.0795,3507.5,3506.1,3.102]
[1718962393681,0.55,3507.4,3506.1,3.102]
[1718962394869,0.0795,3507.5,3506.2,0.05703483]
[1718962395080,0.55,3507.4,3505.4,3.014]
[1718962395235,0.55,3507.4,3505.5,3.81088]
[1718962395437,0.55,3507.4,3505.5,2.82]
[1718962397450,0.55,3507.4,3505.0,5.834]
[1718962398084,0.2977388,3507.3,3505.0,2.82]
[1718962398286,0.2977388,3507.3,3505.1,0.5834]
[1718962398287,0.55,3507.2,3505.1,0.5834]
[1718962400084,0.55,3507.2,3505.1,3.5974]
[1718962400950,0.2977388,3507.3,3505.5,2.82]
[1718962401294,0.0795,3507.5,3506.0,2.82]
[1718962401509,0.0795,3507.5,3506.1,0.282]
[1718962402088,0.20366627,3507.7,3506.1,0.282]
[1718962402285,1.893223,3508.8,3506.1,0.282]
[1718962402505,0.29756447,3508.2,3506.1,0.282]
[1718962403001,0.0008,3506.8,3506.1,0.282]
[1718962403202,0.0008,3506.8,3506.2,0.6116]
[1718962403404,0.0008,3506.8,3506.5,2.82]
[1718962403621,0.0008,3506.8,3506.6,3.2235]
[1718962404470,0.29748963,3509.3,3506.6,6.2375]
[1718962404670,1.0779007,3510.1,3507.3,2.82]
[1718962404671,2.82,3510.1,3507.3,2.82]
[1718962404971,0.29737986,3509.9,3507.3,2.82]
[1718962405196,0.45491388,3509.8,3507.4,0.282]
[1718962406872,0.55,3509.7,3507.4,0.282]
[1718962407117,0.45491388,3509.8,3507.5,3.202]
[1718962407280,0.45491388,3509.8,3507.8,2.82]
[1718962407612,0.55,3509.8,3507.9,0.282]
[1718962407975,0.55,3509.8,3507.9,0.25746]
[1718962408173,0.55,3509.8,3507.9,0.24519]
[1718962408823,0.55,3509.7,3507.9,0.24519]
[1718962409111,0.55,3509.8,3508.0,0.306519]
[1718962409286,0.3174114,3510.0,3508.0,0.306519]
[1718962409816,0.55,3509.9,3508.0,0.306519]
[1718962409982,0.3174114,3510.0,3508.0,0.306519]
[1718962411014,0.867411,3509.9,3508.0,0.306519]
[1718962411189,0.14540994,3509.8,3508.1,0.6140519]
[1718962412517,0.55,3509.7,3508.1,0.6140519]
[1718962412819,0.55,3509.7,3507.8,2.82]
[1718962414178,0.55,3509.7,3507.5,3.202]
[1718962415782,0.0198,3509.6,3506.9,3.2216]
[1718962416136,3.0198,3509.6,3506.9,3.2216]
[1718962416292,1.72852099,3509.5,3507.0,0.90556]
[1718962418527,1.72852099,3509.5,3506.9,3.2216]
[1718962418907,0.29760952,3509.4,3506.9,3.2216]
[1718962419118,2.82,3509.2,3506.9,3.2216]
[1718962419323,3.55,3509.1,3506.9,3.2216]
[1718962420165,0.0467,3509.0,3506.9,3.2216]